bitfinex/quotes_ETHUSD_20240730
["timestamp","ask_amount","ask_price","bid_price","bid_amount"]
[1722371977945,1.92035978,3279.2,3279.1,1.073]
[1722371978174,0.05732792,3279.3,3279.1,1.073]
[1722371978378,2.24058019,3279.4,3279.1,1.073]
[1722371978761,0.05732792,3279.3,3279.1,1.073]
[1722371979171,2.24058019,3279.4,3279.1,1.073]
[1722371979593,0.05732792,3279.3,3279.1,1.073]
[1722371979947,2.24058019,3279.4,3279.1,1.073]
[1722371980349,0.05732792,3279.3,3279.1,1.073]
[1722371980792,4.1918294,3280.0,3279.1,1.073]
[1722371981095,4.1918294,3280.0,3279.0,5.4316]
[1722371981096,2.24047887,3279.4,3279.0,5.4316]
[1722371981249,1.92066307,3279.1,3279.0,5.4316]
[1722371982844,2.24047887,3279.3,3279.0,5.4316]
[1722371983313,0.23225874,3279.2,3279.0,5.4316]
[1722371983463,2.24047887,3279.3,3279.0,5.4316]
[1722371983653,0.23226379,3279.2,3279.0,5.4316]
[1722371983854,2.24047887,3279.3,3279.0,5.4316]
[1722371984128,0.23226416,3279.2,3279.0,2.4316]
[1722371984310,2.24092395,3279.3,3279.0,2.4316]
[1722371984822,0.05727787,3279.2,3279.0,2.4316]
[1722371985325,0.05722782,3279.1,3279.0,2.4316]
[1722371985491,2.24092395,3279.3,3279.0,2.4316]
[1722371985695,0.05727787,3279.2,3279.0,2.4316]
[1722371985895,2.24092395,3279.3,3278.7,3.4717]
[1722371986222,2.24092395,3279.1,3278.8,3.0]
[1722371986731,1.92016781,3278.9,3278.8,3.0]
[1722371987030,0.05716952,3278.9,3278.8,3.0]
[1722371987178,1.97706666,3278.9,3278.8,3.0]
[1722371987526,1.073,3279.6,3278.8,3.0]
[1722371987822,1.92014733,3279.0,3278.8,3.0]
[1722371988319,1.92014733,3278.9,3278.8,3.0]
[1722371988826,1.92014733,3279.0,3278.8,3.0]
[1722371989527,1.92014733,3278.9,3278.8,3.0]
[1722371989721,1.91927484,3279.0,3278.8,3.0]
[1722371990286,1.91927484,3279.0,3278.8,3.64717]
[1722371991032,1.073,3279.8,3278.8,3.64717]
[1722371991187,1.91909094,3279.0,3278.8,3.0]
[1722371994500,1.91866317,3279.0,3278.8,3.0]
[1722371994826,1.91866677,3279.0,3278.8,3.0]
[1722371995035,1.91877981,3279.1,3278.8,3.0]
[1722371995228,1.91877981,3279.2,3278.9,1.073]
[1722371995938,1.91877981,3279.1,3278.8,3.0]
[1722371996493,1.91901324,3279.2,3278.9,1.073]
[1722371996905,1.91901324,3279.2,3278.9,36.073]
[1722371997130,1.91901324,3279.2,3279.0,5.49561288]
[1722371997595,1.91901324,3279.2,3279.0,2.4466]
[1722371997952,1.91927044,3279.2,3279.0,2.4466]
[1722371998643,1.97438057,3279.1,3279.0,2.4466]
[1722371998847,0.05511013,3279.1,3279.0,2.4466]
[1722371999172,1.91927044,3279.2,3279.0,3.09856]
[1722371999841,1.91927044,3279.1,3279.0,3.09856]
[1722372000005,1.91927044,3279.1,3279.0,2.4466]
[1722372000635,2.23914884,3279.4,3279.0,2.4466]
[1722372000636,1.91927044,3279.2,3279.0,2.4466]
[1722372000944,1.92006873,3279.2,3279.0,2.4466]
[1722372001341,1.92006873,3279.1,3279.0,2.4466]
[1722372002145,2.24008018,3279.3,3279.0,2.4466]
[1722372002300,1.91905165,3279.1,3279.0,2.4466]
[1722372003381,1.073,3279.8,3279.0,2.99126]
[1722372003538,1.91908476,3279.2,3279.0,2.99126]
[1722372004137,1.91908476,3279.2,3279.1,1.073]
[1722372004479,1.91908476,3279.5,3279.2,2.3251]
[1722372004644,1.91908476,3279.5,3279.4,1.073]
[1722372005150,0.23205225,3279.7,3279.4,1.073]
[1722372005151,2.47098447,3279.7,3279.4,1.073]
[1722372005369,2.47098447,3279.7,3279.2,3.3981]
[1722372005682,2.47098447,3279.7,3279.2,2.3251]
[1722372005683,1.91972847,3279.4,3279.2,2.3251]
[1722372005841,1.91972847,3279.3,3279.2,2.3251]
[1722372006177,2.23893222,3279.6,3279.2,2.3251]
[1722372006383,0.23205225,3279.7,3279.0,1.61766]
[1722372006384,2.44226459,3279.5,3279.0,1.61766]
[1722372006583,0.23205225,3279.7,3278.9,2.2852]
[1722372006584,1.91963876,3279.1,3278.9,2.2852]
[1722372006766,1.91980041,3279.1,3278.9,2.2852]
[1722372006937,1.91980041,3279.0,3278.9,2.2852]
[1722372007634,1.91980041,3279.1,3278.9,2.2852]
[1722372007933,1.91980041,3279.0,3278.9,2.2852]
[1722372008134,2.23976714,3279.2,3278.9,2.2852]
[1722372008337,2.64572494,3279.5,3278.4,6.8]
[1722372008338,3.9221136,3279.1,3278.4,6.8]
[1722372008641,2.23973443,3278.6,3278.3,2.2852]
[1722372008902,1.073,3278.9,3278.3,2.2852]
[1722372008903,1.9196758,3278.4,3278.3,2.2852]
[1722372009191,2.23973443,3278.7,3278.4,2.2615]
[1722372009192,1.9196758,3278.7,3278.4,2.2615]
[1722372009340,1.9196758,3279.0,3278.7,2.2615]
[1722372009541,1.9196758,3279.1,3278.9,3.3345]
[1722372009755,2.87777719,3279.7,3278.9,3.3345]
[1722372009756,2.23973443,3279.3,3279.0,1.073]
[1722372009994,2.24001508,3279.3,3279.0,1.073]
[1722372010175,2.24001508,3279.3,3278.9,2.2615]
[1722372010507,2.44280874,3279.2,3278.9,2.2615]
[1722372010658,2.64615262,3279.2,3278.9,2.2615]
[1722372010865,2.44281372,3279.1,3278.9,2.2615]
[1722372011062,2.23946984,3279.1,3278.9,2.2615]
[1722372011397,0.05501026,3279.0,3278.7,5.435]
[1722372011559,1.91982673,3278.9,3278.7,6.0858]
[1722372011743,1.91988482,3278.8,3278.7,6.0858]
[1722372011948,1.97479496,3278.8,3278.7,6.0858]
[1722372012144,1.97479496,3278.8,3278.7,5.435]
[1722372012764,0.05491014,3278.8,3278.7,5.435]
[1722372013160,2.24023343,3279.0,3278.7,5.435]
[1722372013370,1.92019306,3278.8,3278.7,5.435]
[1722372013857,1.97522737,3278.8,3278.7,5.435]
[1722372014069,0.05503431,3278.8,3278.7,5.435]
[1722372014303,1.97566092,3278.8,3278.7,5.435]
[1722372014761,0.05503431,3278.8,3278.7,5.435]
[1722372014954,1.92062661,3278.9,3278.7,8.48401288]
[1722372015156,1.92062661,3278.9,3278.8,1.073]
[1722372015372,2.24023343,3279.1,3278.8,1.073]
[1722372015648,2.44364487,3279.0,3278.8,1.073]
[1722372015893,2.29534436,3279.0,3278.8,1.073]
[1722372016256,2.24023343,3278.9,3278.8,1.073]
[1722372016457,0.05506087,3278.9,3278.8,1.073]
[1722372016764,0.05496153,3278.9,3278.8,1.7238]
[1722372017003,2.24134659,3279.0,3278.8,1.7238]
[1722372017209,0.20351291,3278.9,3278.8,1.7238]
[1722372017659,0.20350844,3278.9,3278.8,1.7238]
[1722372017859,2.24134659,3279.1,3278.8,1.7238]
[1722372018064,2.4448297,3279.0,3278.8,1.073]
[1722372018277,0.20348311,3278.9,3278.8,1.073]
[1722372018884,2.4448297,3278.9,3278.8,1.073]
[1722372019407,0.20348311,3278.9,3278.7,5.435]
[1722372019707,3.1188294,3279.5,3278.7,5.435]
[1722372019911,2.24225542,3278.9,3278.7,5.435]
[1722372020210,0.20353631,3278.8,3278.7,5.435]
[1722372020501,0.20353631,3278.8,3278.4,3.3636]
[1722372020697,2.24203888,3278.5,3278.2,1.073]
[1722372020856,1.92173039,3278.3,3278.2,1.073]
[1722372021297,0.05478531,3278.3,3278.2,1.073]
[1722372021506,1.9765157,3278.3,3278.2,1.073]
[1722372021668,1.92173039,3278.3,3278.2,1.073]
[1722372022203,1.92173039,3278.4,3278.2,4.073]
[1722372022407,7.09514819,3279.6,3277.9,35.3056]
[1722372022408,1.92173039,3278.6,3278.3,4.01376]
[1722372022556,1.92173039,3278.6,3278.5,1.073]
[1722372022756,2.24203888,3278.8,3278.6,2.3044]
[1722372023006,2.24102942,3278.9,3278.8,1.073]
[1722372023305,2.24102942,3278.9,3278.6,2.3044]
[1722372023618,1.92074116,3278.7,3278.6,2.54093998]
[1722372023760,1.92074116,3278.9,3278.6,5.54093998]
[1722372023958,1.97543116,3278.8,3278.6,5.54093998]
[1722372024388,1.92074116,3278.8,3278.6,5.54093998]
[1722372024889,1.92074116,3278.8,3278.7,0.2]
[1722372025198,1.97543116,3278.8,3278.7,0.774094]
[1722372026768,0.05469,3278.8,3278.7,0.774094]
[1722372026967,1.92103425,3279.0,3278.8,2.2511]
[1722372027265,1.92103425,3279.4,3279.0,2.2511]
[1722372027508,1.92103425,3279.5,3279.1,0.06098254]
[1722372027710,1.92103425,3279.5,3279.2,0.53120825]
[1722372027863,1.92103425,3279.5,3279.4,2.4047]
[1722372028312,1.4316042,3281.0,3279.4,2.4047]
[1722372028313,1.92103425,3279.6,3279.4,2.4047]
[1722372028867,1.92103425,3279.7,3279.4,2.4047]
[1722372029169,1.92103425,3279.7,3279.4,2.46567924]
[1722372029398,3.1188294,3280.6,3279.5,0.54656792]
[1722372029600,1.91985676,3279.7,3279.5,0.54656792]
[1722372029910,1.91954549,3279.7,3279.5,0.54656792]
[1722372030879,1.91954549,3279.8,3279.5,0.54656792]
[1722372031392,1.91840127,3279.9,3279.6,0.30122472]
[1722372031724,1.91840127,3279.9,3279.6,0.36220212]
[1722372031866,1.91840127,3280.1,3279.7,2.3458]
[1722372032065,2.09278388,3280.4,3279.7,8.39484]
[1722372032316,2.09278388,3280.4,3279.8,0.33176552]
[1722372032610,0.08361388,3280.3,3279.8,3.33176552]
[1722372032812,2.09223707,3280.4,3279.9,36.17266055]
[1722372033163,0.1447234,3280.5,3279.9,36.17266055]
[1722372033164,2.06257786,3280.5,3279.9,36.17266055]
[1722372033798,0.1447234,3280.5,3279.9,36.17266055]
[1722372033997,0.1447234,3280.5,3280.0,2.413]
[1722372034224,0.1447234,3280.5,3280.1,3.04901288]
[1722372034423,2.06257786,3280.5,3280.1,3.04901288]
[1722372034625,0.1447234,3280.5,3280.1,3.04901288]
[1722372034813,2.06257786,3280.5,3280.1,3.04901288]
[1722372035014,0.1447234,3280.5,3280.1,3.04901288]
[1722372035210,0.1447234,3280.5,3280.2,0.54620129]
[1722372037177,0.1447234,3280.5,3280.4,0.2]
[1722372039783,0.22853665,3280.5,3280.4,0.2]
[1722372040140,0.22853665,3280.5,3280.4,2.6323]
[1722372040342,0.22853665,3280.5,3280.4,5.69325572]
[1722372040607,0.1447234,3280.5,3280.4,7.12998429]
[1722372040752,0.1447234,3280.5,3280.4,7.06902857]
[1722372041140,0.1447234,3280.5,3280.4,5.6323]
[1722372042285,0.1447234,3280.5,3280.4,5.69325617]
[1722372043152,0.1447234,3280.5,3280.4,40.69325617]
[1722372043496,0.1447234,3280.5,3280.4,46.79005617]
[1722372045371,0.1447234,3280.5,3280.4,49.83845617]
[1722372045544,0.1447234,3280.5,3280.4,53.43746905]
[1722372046040,0.1447234,3280.5,3280.4,50.38906905]
[1722372046242,4.25337494,3282.5,3281.1,3.04774]
[1722372046479,4.25337494,3282.5,3281.3,2.3391]
[1722372046677,4.25337494,3282.5,3281.4,0.06094161]
[1722372046985,2.3435,3282.5,3281.4,0.60094577]
[1722372048883,2.3435,3282.5,3281.3,2.3391]
[1722372049095,2.4275,3282.3,3281.2,3.0]
[1722372050352,2.4275,3282.3,3281.0,2.2981]
[1722372050767,2.4275,3282.3,3280.7,6.8]
[1722372050768,2.9884,3282.2,3280.7,9.2805]
[1722372051158,4.89538988,3282.2,3280.7,9.2805]
[1722372051377,2.4384,3282.0,3280.4,3.24901288]
[1722372051577,0.55,3281.9,3280.4,0.2]
[1722372052786,0.55,3281.9,3280.4,3.2]
[1722372052991,2.4665,3281.8,3280.4,3.2]
[1722372053159,0.55,3281.7,3280.4,3.2]
[1722372055145,4.28176012,3281.6,3280.4,0.2]
[1722372055350,0.55,3281.5,3280.4,0.2]
[1722372055822,3.59743,3281.5,3280.4,0.2]
[1722372056097,0.55,3281.5,3280.4,0.2]
[1722372056299,0.07856219,3281.4,3280.4,0.2]
[1722372062025,2.3321,3281.3,3280.4,0.2]
[1722372062300,1.98651357,3281.2,3280.4,0.2]
[1722372063817,1.90804074,3281.1,3280.4,0.2]
[1722372064010,1.98651357,3281.2,3280.4,0.2]
[1722372064169,0.0784238,3281.1,3280.4,0.2]
[1722372064528,1.98646454,3281.1,3280.4,0.2]
[1722372064692,1.98754418,3281.1,3280.4,0.2]
[1722372065006,0.0784238,3281.1,3280.4,0.2]
[1722372065174,1.98754418,3281.1,3280.4,0.2]
[1722372065519,0.0784238,3281.1,3280.4,0.2]
[1722372065963,1.90912038,3281.1,3280.4,0.2]
[1722372066164,0.07828057,3281.0,3280.4,0.2]
[1722372067203,0.07828057,3281.0,3279.9,35.0]
[1722372067204,1.98740095,3281.0,3279.9,35.0]
[1722372067406,1.98740095,3281.0,3280.0,3.04901288]
[1722372067703,0.07828057,3281.0,3280.0,3.04901288]
[1722372068062,1.91099249,3281.0,3280.0,3.04901288]
[1722372068261,0.07812969,3280.9,3280.0,3.04901288]
[1722372068458,0.07812969,3280.9,3280.1,3.04901288]
[1722372068664,4.24404291,3281.3,3280.2,2.3485]
[1722372068864,0.07799824,3280.8,3280.3,0.06096052]
[1722372069178,1.91194291,3281.3,3280.4,35.0]
[1722372069511,1.99013532,3281.2,3280.4,35.0]
[1722372069682,1.99013532,3281.2,3280.5,3.04901288]
[1722372070067,0.07819241,3281.2,3280.5,3.04901288]
[1722372070419,1.99013532,3281.2,3280.5,3.04901288]
[1722372070580,0.07819241,3281.2,3280.3,0.06096047]
[1722372070787,0.07819241,3281.2,3280.3,35.06096047]
[1722372071683,0.07819241,3281.2,3280.3,35.0]
[1722372071684,1.99212971,3281.2,3280.3,35.0]
[1722372071879,1.9139373,3281.1,3280.3,35.0]
[1722372072086,0.07822776,3281.1,3280.4,3.04901288]
[1722372072281,0.07822776,3281.1,3280.8,2.577]
[1722372072513,0.07822776,3281.1,3280.9,0.06094699]
[1722372072725,1.9139373,3281.8,3280.9,3.06094699]
[1722372073069,1.99264284,3281.7,3280.9,3.06094699]
[1722372073311,1.99264284,3281.7,3281.0,3.04901288]
[1722372073529,1.99264284,3281.7,3281.1,0.06094694]
[1722372074069,1.9139373,3281.7,3281.1,0.06094694]
[1722372074589,1.9139373,3282.0,3281.2,2.2866]
[1722372074787,1.9139373,3282.0,3281.3,0.23475469]
[1722372075115,0.07906381,3281.9,3281.3,0.23475469]
[1722372075316,1.99300111,3281.9,3281.3,0.23475469]
[1722372075675,1.99300111,3281.9,3281.3,0.43475469]
[1722372075918,0.07906381,3281.9,3281.4,0.06094693]
[1722372076576,1.9139373,3282.1,3281.5,0.34957016]
[1722372076951,1.99308962,3282.0,3281.5,0.34957016]
[1722372077900,1.99442403,3282.0,3281.5,0.34957016]
[1722372078073,0.07915232,3282.0,3281.5,0.34957016]
[1722372078417,0.07915232,3282.0,3281.6,0.06094029]
[1722372078624,0.07915232,3282.0,3281.5,0.41050965]
[1722372079122,1.99442403,3282.0,3281.5,0.41050965]
[1722372079323,0.07915232,3282.0,3281.5,0.41050965]
[1722372079673,1.91527171,3282.2,3281.5,0.41050965]
[1722372079873,10.09514819,3283.0,3281.6,0.2]
[1722372079874,0.07910332,3281.9,3281.6,0.2]
[1722372080115,1.91527171,3282.1,3281.6,0.2]
[1722372080329,0.07905432,3281.8,3281.6,0.2]
[1722372080530,1.91527171,3282.0,3281.7,0.06093793]
[1722372080818,0.0791194,3281.9,3281.6,0.26093817]
[1722372081006,1.91527171,3282.3,3281.6,0.26093817]
[1722372081204,2.4012,3282.9,3281.6,0.26093817]
[1722372081408,0.07923989,3282.2,3281.7,2.81455083]
[1722372081604,0.07923403,3282.1,3281.8,0.06093482]
[1722372081928,1.91436482,3282.3,3281.8,0.06093482]
[1722372082149,0.07918504,3282.0,3281.8,0.06093482]
[1722372082349,1.91436482,3282.4,3281.9,0.28754856]
[1722372082572,1.91436482,3282.3,3281.9,0.28754856]
[1722372082851,1.91436482,3282.4,3281.9,0.28754856]
[1722372083065,1.91436482,3282.3,3281.9,0.28754856]
[1722372083259,1.91436482,3282.2,3281.7,2.4535]
[1722372083555,1.91436482,3282.1,3281.6,0.2]
[1722372083909,1.59488437,3281.8,3281.6,0.4]
[1722372084237,1.59488437,3281.7,3281.6,0.98535]
[1722372084446,0.55,3282.8,3281.6,0.98535]
[1722372084631,1.59491321,3281.7,3281.6,0.4]
[1722372084835,1.59489772,3282.2,3281.6,0.4]
[1722372085114,1.59489772,3282.3,3281.7,0.06094022]
[1722372085315,1.59489772,3282.4,3281.7,0.06094022]
[1722372085515,1.59489772,3282.4,3281.6,0.4]
[1722372085960,1.59489772,3282.3,3281.6,0.4]
[1722372086128,1.59489772,3282.4,3281.7,0.0609378]
[1722372086311,0.07884636,3282.2,3281.7,0.4009378]
[1722372086512,0.07889535,3282.3,3281.7,0.4009378]
[1722372086810,1.59382691,3282.1,3281.7,0.34]
[1722372087051,0.07874837,3282.0,3281.7,0.40093781]
[1722372087727,1.67257528,3282.0,3281.7,0.40093781]
[1722372087929,0.07874837,3282.0,3281.7,0.34]
[1722372088144,0.07874837,3282.0,3281.9,2.3926]
[1722372088457,0.07846772,3282.0,3281.9,2.6719535]
[1722372088609,1.59392465,3282.2,3281.9,2.6719535]
[1722372088809,0.07851672,3282.1,3281.9,2.6719535]
[1722372089050,1.59392465,3282.3,3281.9,2.6719535]
[1722372089254,1.59392465,3282.3,3282.0,0.27328885]
[1722372089440,0.07856573,3282.2,3282.0,0.27328885]
[1722372089695,1.59392465,3282.3,3282.0,0.27328885]
[1722372089882,0.07851672,3282.1,3282.0,0.27328885]
[1722372090215,1.59392465,3282.3,3282.0,0.27328885]
[1722372090687,0.07855986,3282.2,3282.0,0.27328885]
[1722372091310,1.59287145,3282.4,3282.0,0.27328885]
[1722372091457,0.07851086,3282.1,3282.0,0.27328885]
[1722372091662,1.59287145,3282.3,3282.0,0.27328885]
[1722372091895,0.07855986,3282.2,3282.0,0.27328885]
[1722372092405,1.59287145,3282.4,3282.0,0.27328885]
[1722372092911,0.07860886,3282.3,3282.0,0.27328885]
[1722372093750,1.59287145,3282.4,3282.0,0.27328885]
[1722372094242,9.32516823,3283.0,3282.1,0.26658889]
[1722372094243,0.07810552,3282.3,3282.1,0.26658889]
[1722372094441,7.09514819,3283.0,3282.1,0.26658889]
[1722372094744,1.59214718,3282.7,3282.1,0.26658889]
[1722372095097,0.0782662,3282.6,3282.1,0.26658889]
[1722372096647,0.0782662,3282.6,3282.3,2.4663]
[1722372096953,1.59214718,3282.8,3282.4,0.24663]
[1722372097149,1.59214718,3283.0,3282.4,0.24663]
[1722372097306,0.07862117,3282.7,3282.3,2.52722525]
[1722372097499,1.59214718,3283.0,3282.3,2.52722525]
[1722372097695,7.09514819,3283.3,3282.3,2.52722525]
[1722372097932,0.07881632,3282.9,3282.3,2.71902252]
[1722372098132,0.07881632,3282.9,3282.3,2.4663]
[1722372098133,1.66985586,3282.9,3282.3,2.4663]
[1722372098352,0.07881632,3282.9,3282.3,2.4663]
[1722372098501,1.66985586,3282.9,3282.3,2.4663]
[1722372099148,1.59103954,3282.8,3282.3,2.4663]
[1722372099449,0.07873406,3282.7,3282.3,2.4663]
[1722372099651,0.07873406,3282.7,3282.3,2.71293]
[1722372099849,1.59103954,3282.9,3282.3,2.71293]
[1722372099996,7.09514819,3283.3,3282.3,2.71293]
[1722372099997,0.07878304,3282.8,3282.3,2.71293]
[1722372100346,1.59103954,3283.1,3282.3,2.71293]
[1722372100650,1.59103954,3283.0,3282.4,0.271293]
[1722372100831,0.07885945,3282.9,3282.4,0.271293]
[1722372101012,2.4932,3283.5,3282.4,0.271293]
[1722372101219,1.59037246,3283.1,3282.3,2.4663]
[1722372101424,1.66928089,3283.0,3282.3,2.4663]
[1722372101633,1.66928089,3283.0,3282.3,2.52722529]
[1722372101634,0.07890843,3283.0,3282.3,2.52722529]
[1722372102628,0.07890843,3283.0,3282.3,2.4663]
[1722372102629,1.66928089,3283.0,3282.3,2.4663]
[1722372102826,1.66928089,3283.0,3282.4,0.24663]
[1722372103036,1.59037246,3282.9,3282.3,2.4663]
[1722372103231,0.07881048,3282.8,3282.3,2.4663]
[1722372103437,0.07881048,3282.8,3282.4,0.06092528]
[1722372103633,1.59037246,3283.1,3282.4,0.06092528]
[1722372103953,0.07890843,3283.0,3282.4,0.06092528]
[1722372104109,0.07890843,3283.0,3282.5,0.25272253]
[1722372104739,1.59021084,3283.1,3282.5,0.25272253]
[1722372105052,0.07890843,3283.0,3282.5,0.25272253]
[1722372105451,1.59021166,3283.2,3282.5,0.25272253]
[1722372105654,0.07871449,3283.1,3282.5,0.25272253]
[1722372105855,1.59021166,3283.3,3282.5,0.25272253]
[1722372106009,0.07876347,3283.2,3282.5,0.25272253]
[1722372106351,1.27211976,3283.1,3282.6,2.35762197]
[1722372106552,0.07876347,3283.2,3282.6,2.35762197]
[1722372106749,0.07872237,3283.0,3282.6,5.35762197]
[1722372107048,0.07868319,3282.9,3282.6,5.91865642]
[1722372107347,1.27211976,3283.3,3282.6,5.91865642]
[1722372107548,0.0786342,3282.8,3282.6,5.91865642]
[1722372108419,1.27211976,3283.1,3282.6,5.91865413]
[1722372108700,0.078862,3283.0,3282.6,5.91865413]
[1722372108899,0.078862,3283.0,3282.7,0.61713767]
[1722372109098,1.22211976,3283.2,3282.7,0.61713767]
[1722372109312,0.07881302,3282.9,3282.7,0.61713767]
[1722372109605,1.58995242,3283.2,3282.7,0.61713767]
[1722372109910,1.58995242,3283.1,3282.7,0.61713767]
[1722372110198,0.07891098,3283.1,3282.6,5.35761968]
[1722372110585,0.1447234,3283.8,3282.6,5.35761968]
[1722372110901,0.07920477,3283.7,3282.6,5.35761968]
[1722372111103,2.577,3283.6,3282.6,5.2967]
[1722372111273,2.577,3283.6,3282.6,5.35761956]
[1722372111472,0.07908258,3283.5,3282.6,5.35761956]
[1722372112196,1.5915948,3283.2,3282.6,5.35761956]
[1722372112372,0.07908258,3283.5,3282.6,5.35761956]
[1722372112568,0.07879681,3283.1,3282.6,5.91865377]
[1722372112774,0.29480938,3283.8,3282.6,5.91865377]
[1722372112997,0.1447234,3283.8,3282.6,5.91865377]
[1722372113172,0.07911416,3283.7,3282.6,5.91865377]
[1722372114162,0.07911416,3283.7,3282.7,2.3649]
[1722372114369,0.07911416,3283.7,3282.9,0.2]
[1722372115188,1.071,3283.4,3282.9,0.2]
[1722372115561,1.59207184,3283.2,3282.9,0.2]
[1722372116007,0.07908917,3283.1,3282.9,0.2]
[1722372116176,0.07908917,3283.1,3282.9,0.46258155]
[1722372118328,1.071,3283.7,3283.0,2.36371561]
[1722372118681,0.07738575,3283.6,3283.0,2.36371561]
[1722372120024,1.2157234,3283.8,3283.1,1.071]
[1722372120025,0.1447234,3283.8,3283.1,1.071]
[1722372120192,0.1447234,3283.8,3283.7,3.4497]
[1722372120517,0.1447234,3283.8,3283.7,3.79467]
[1722372121318,0.1447234,3283.8,3283.7,2.72367]
[1722372123097,0.1447234,3283.8,3283.0,2.4848]
[1722372123418,0.1447234,3283.8,3283.0,5.4848]
[1722372123629,0.1447234,3283.8,3283.2,2.4848]
[1722372123833,0.1447234,3283.8,3283.3,2.54570412]
[1722372124043,0.1447234,3283.8,3283.4,0.25457041]
[1722372124204,0.1447234,3283.8,3283.6,2.4848]
[1722372124394,0.1447234,3283.8,3283.7,0.06089825]
[1722372124791,0.1447234,3283.8,3283.7,2.54569825]
[1722372125730,0.1447234,3283.8,3283.7,5.54569825]
[1722372125905,0.1447234,3283.8,3283.7,6.35716808]
[1722372126499,0.1447234,3283.8,3283.7,6.29626983]
[1722372127738,0.21691259,3283.8,3283.7,6.29626983]
[1722372131278,0.21691259,3283.8,3283.7,41.29626983]
[1722372131418,0.1447234,3283.8,3283.7,41.29626983]
[1722372131953,0.1447234,3283.8,3283.7,6.29626983]
[1722372132674,0.1447234,3283.8,3283.7,9.34160983]
[1722372133607,0.00182553,3285.0,3284.6,2.4838]
[1722372133741,0.00182553,3285.0,3284.8,2.4838]
[1722372134148,1.27622539,3285.0,3284.8,2.4838]
[1722372134351,0.00182553,3285.0,3284.8,2.4838]
[1722372135194,1.2739784,3285.0,3284.8,2.4838]
[1722372135392,0.00182553,3285.0,3284.8,2.4838]
[1722372136002,0.00182553,3285.0,3284.8,5.15127193]
[1722372138862,0.00182553,3285.0,3284.9,2.42097674]
[1722372139292,0.00182553,3285.0,3284.9,7.98997674]
[1722372143815,0.00182553,3285.0,3284.9,14.07843674]
[1722372144018,0.005,3285.3,3285.2,5.30755]
[1722372144161,0.005,3285.3,3285.2,9.20357671]
[1722372144503,0.005,3285.3,3285.2,9.142713]
[1722372144805,0.005,3285.3,3285.2,6.098763]
[1722372145789,0.005,3285.3,3285.2,3.835163]
[1722372146004,0.005,3285.3,3285.2,0.835163]
[1722372146430,0.005,3285.3,3285.2,0.89603263]
[1722372146830,0.005,3285.3,3285.2,0.835163]
[1722372147042,0.005,3285.3,3285.2,0.89603267]
[1722372148647,0.005,3285.3,3285.2,0.835163]
[1722372149133,0.005,3285.3,3285.2,3.314463]
[1722372149349,0.005,3285.3,3285.2,6.6091667]
[1722372149972,0.005,3285.3,3285.2,6.5483]
[1722372151134,0.005,3285.3,3285.2,5.4793]
[1722372151328,0.005,3285.3,3285.2,3.0]
[1722372151760,0.005,3285.3,3284.8,2.66747193]
[1722372151761,0.005,3285.3,3284.9,3.0]
[1722372151932,0.005,3285.3,3285.0,0.06087419]
[1722372152131,0.005,3285.3,3284.8,3.0]
[1722372152438,0.005,3285.3,3284.8,6.04427]
[1722372152653,0.005,3285.3,3284.8,3.0]
[1722372152879,0.005,3285.3,3284.9,0.55391635]
[1722372155565,0.0682632,3285.2,3285.0,35.0]
[1722372155771,0.0682632,3285.2,3285.1,3.0]
[1722372155957,0.005,3285.3,3285.1,3.0]
[1722372157137,0.005,3285.3,3285.2,2.39817063]
[1722372157338,0.005,3285.3,3285.2,5.44718351]
[1722372157539,0.005,3285.3,3285.2,8.38631288]
[1722372160875,1.26949525,3286.1,3285.2,8.38631288]
[1722372161044,1.58990695,3286.2,3285.3,6.04386]
[1722372161045,0.06866117,3286.0,3285.3,6.04386]
[1722372161238,1.27449525,3286.3,3285.4,1.44301729]
[1722372161437,0.06875894,3286.2,3285.5,0.06086362]
[1722372161667,1.26949525,3286.1,3285.3,3.0]
[1722372161874,1.26949525,3286.0,3285.3,3.0]
[1722372162393,0.06843032,3285.9,3285.4,0.06086912]
[1722372162687,1.26949525,3286.0,3285.4,0.85863129]
[1722372162832,0.06871558,3285.9,3285.4,0.85863129]
[1722372163034,1.26949525,3286.0,3285.4,0.85863129]
[1722372163448,0.06871558,3285.9,3285.4,0.85863129]
[1722372163753,1.26949525,3285.9,3285.4,0.85863129]
[1722372164166,1.26949525,3285.9,3285.3,3.0]
[1722372164167,3.61219525,3285.9,3285.3,3.0]
[1722372164377,1.26949525,3285.8,3285.3,3.0]
[1722372164842,1.26949525,3285.7,3285.3,3.0]
[1722372165069,1.26949525,3285.8,3285.3,3.0]
[1722372165273,1.26949525,3285.7,3285.3,4.13045666]
[1722372166217,1.26949525,3285.8,3285.3,4.13045666]
[1722372166517,2.3427,3285.6,3285.2,0.4]
[1722372166726,1.59072886,3285.4,3285.2,0.4]
[1722372167018,0.06868048,3285.3,3285.2,0.4]
[1722372167624,1.97755511,3285.3,3285.2,0.4]
[1722372167774,0.06868048,3285.3,3285.2,0.4]
[1722372168189,1.97755511,3285.3,3285.2,0.4]
[1722372168811,0.06868048,3285.3,3285.2,0.4]
[1722372169350,0.06846205,3285.3,3285.2,0.4]
[1722372169508,0.06846205,3285.3,3285.2,0.6]
[1722372169704,2.95210502,3285.5,3285.2,0.6]
[1722372170061,2.395,3285.3,3285.2,0.6]
[1722372170207,2.945,3285.3,3285.2,0.6]
[1722372170544,3.01320558,3285.3,3285.2,0.6]
[1722372170757,9.05706558,3285.3,3285.2,0.6]
[1722372170959,9.05706558,3285.3,3285.2,0.25762559]
[1722372170960,15.40611892,3285.3,3285.2,0.25762559]
[1722372171107,12.24481076,3285.3,3285.2,0.25762559]
[1722372171306,12.24481076,3285.3,3283.1,9.121]
[1722372171307,3.04413,3285.1,3283.1,9.121]
[1722372171614,3.04413,3285.1,3283.2,1.216696]
[1722372171615,1.27457131,3283.7,3283.2,1.216696]
[1722372171800,1.27457131,3283.6,3283.1,44.121]
[1722372172247,1.27457131,3283.7,3283.1,44.121]
[1722372172404,1.27457131,3283.6,3283.1,44.121]
[1722372172605,1.27457131,3283.6,3283.2,3.04901288]
[1722372172912,1.59357609,3283.8,3283.2,3.04901288]
[1722372172913,1.27457131,3283.7,3283.2,3.04901288]